[Event "Early-Titled-Tuesday-Blitz-May-07-2024"]
[Site "Chess.com"]
[Date "2024.05.07"]
[Round "6"]
[White "Journey_to_GrandMaster_YT"]
[Black "CarlosjPineror"]
[Result "1/2-1/2"]
[WhiteElo "2546"]
[BlackElo "2713"]
[TimeControl "180+1"]
[EndTime "9:12:30 PDT"]
[Termination "Game drawn by repetition"]

1. d4 {[%clk 0:02:57.3]} 1... Nf6 {[%clk 0:02:58.6]} 2. Nf3 {[%clk 0:02:56]}
2... g6 {[%clk 0:02:58.3]} 3. g3 {[%clk 0:02:56.2]} 3... d6 {[%clk 0:02:58.2]}
4. Bg2 {[%clk 0:02:56.7]} 4... Bg7 {[%clk 0:02:59.1]} 5. O-O {[%clk 0:02:57.3]}
5... O-O {[%clk 0:03:00]} 6. b3 {[%clk 0:02:57.8]} 6... c6 {[%clk 0:03:00.7]} 7.
Bb2 {[%clk 0:02:58.1]} 7... Qa5 {[%clk 0:03:01.4]} 8. Nbd2 {[%clk 0:02:57.5]}
8... Qh5 {[%clk 0:03:01.9]} 9. h4 {[%clk 0:02:56.6]} 9... h6 {[%clk 0:03:01.2]}
10. Re1 {[%clk 0:02:46.6]} 10... g5 {[%clk 0:03:01.1]} 11. e4 {[%clk 0:02:30.4]}
11... Bg4 {[%clk 0:02:42.8]} 12. e5 {[%clk 0:02:28.4]} 12... Nd5 {[%clk
0:02:34]} 13. c4 {[%clk 0:02:21]} 13... Nb4 {[%clk 0:02:33.6]} 14. Qb1 {[%clk
0:02:19.4]} 14... Nd7 {[%clk 0:02:21.5]} 15. a3 {[%clk 0:02:17.1]} 15... Na6
{[%clk 0:02:18.9]} 16. hxg5 {[%clk 0:01:44.9]} 16... hxg5 {[%clk 0:02:14.7]} 17.
b4 {[%clk 0:01:43.3]} 17... dxe5 {[%clk 0:02:00.7]} 18. dxe5 {[%clk 0:01:36.1]}
18... e6 {[%clk 0:01:27.8]} 19. Qe4 {[%clk 0:01:23.4]} 19... Bf5 {[%clk
0:01:02.1]} 20. Qe3 {[%clk 0:01:23.3]} 20... Bh6 {[%clk 0:01:02.7]} 21. Nd4
{[%clk 0:01:14.9]} 21... Bh3 {[%clk 0:00:51.6]} 22. Bh1 {[%clk 0:01:11.5]} 22...
Qg6 {[%clk 0:00:43.4]} 23. f3 {[%clk 0:00:56.2]} 23... Bf5 {[%clk 0:00:22.4]}
24. g4 {[%clk 0:00:51.4]} 24... Bd3 {[%clk 0:00:22.2]} 25. c5 {[%clk 0:00:34.1]}
25... Rad8 {[%clk 0:00:19.3]} 26. Rac1 {[%clk 0:00:31.9]} 26... Bg7 {[%clk
0:00:17.3]} 27. N4b3 {[%clk 0:00:27.1]} 27... b5 {[%clk 0:00:13.3]} 28. Rc3
{[%clk 0:00:25.3]} 28... Bc4 {[%clk 0:00:10.6]} 29. Nxc4 {[%clk 0:00:22.2]}
29... bxc4 {[%clk 0:00:09.9]} 30. Rxc4 {[%clk 0:00:22.6]} 30... Nc7 {[%clk
0:00:10.3]} 31. f4 {[%clk 0:00:19.9]} 31... gxf4 {[%clk 0:00:10.1]} 32. Qxf4
{[%clk 0:00:17.8]} 32... Nd5 {[%clk 0:00:10.6]} 33. Bxd5 {[%clk 0:00:17.7]}
33... cxd5 {[%clk 0:00:11]} 34. Rcc1 {[%clk 0:00:17.2]} 34... Rc8 {[%clk
0:00:09.1]} 35. Nd4 {[%clk 0:00:12]} 35... Qd3 {[%clk 0:00:06.9]} 36. Qe3 {[%clk
0:00:11.3]} 36... Qg6 {[%clk 0:00:06.4]} 37. Qf4 {[%clk 0:00:08.7]} 37... Qd3
{[%clk 0:00:05.9]} 38. Re3 {[%clk 0:00:08.8]} 38... Qg6 {[%clk 0:00:06.1]} 39.
Nb5 {[%clk 0:00:07.8]} 39... f6 {[%clk 0:00:06.1]} 40. exf6 {[%clk 0:00:06.2]}
40... Bxf6 {[%clk 0:00:06.5]} 41. Bxf6 {[%clk 0:00:05.7]} 41... Rxf6 {[%clk
0:00:05.6]} 42. Qg3 {[%clk 0:00:04.4]} 42... Rcf8 {[%clk 0:00:06.2]} 43. Nd6
{[%clk 0:00:03.3]} 43... d4 {[%clk 0:00:06.5]} 44. Rd3 {[%clk 0:00:02.1]} 44...
e5 {[%clk 0:00:06.3]} 45. c6 {[%clk 0:00:02.3]} 45... e4 {[%clk 0:00:04.9]} 46.
cxd7 {[%clk 0:00:02.4]} 46... exd3 {[%clk 0:00:05.2]} 47. Ne8 {[%clk 0:00:02.4]}
47... Rxe8 {[%clk 0:00:04.8]} 48. dxe8=Q+ {[%clk 0:00:02.6]} 48... Qxe8 {[%clk
0:00:05.6]} 49. Qxd3 {[%clk 0:00:03]} 49... Qe5 {[%clk 0:00:04]} 50. Rf1 {[%clk
0:00:02.5]} 50... Rf4 {[%clk 0:00:02.9]} 51. Rxf4 {[%clk 0:00:02.4]} 51... Qxf4
{[%clk 0:00:03.8]} 52. Qg6+ {[%clk 0:00:02.8]} 52... Kh8 {[%clk 0:00:02.9]} 53.
Qh5+ {[%clk 0:00:02.9]} 53... Kg8 {[%clk 0:00:03.1]} 54. Qg6+ {[%clk 0:00:03.1]}
54... Kh8 {[%clk 0:00:03.1]} 55. Qf5 {[%clk 0:00:03.1]} 55... Qe3+ {[%clk
0:00:03]} 56. Kg2 {[%clk 0:00:03.6]} 56... d3 {[%clk 0:00:03.6]} 57. Qh5+ {[%clk
0:00:03.2]} 57... Kg8 {[%clk 0:00:04]} 58. Qg6+ {[%clk 0:00:03.4]} 58... Kh8
{[%clk 0:00:04.1]} 59. Qh5+ {[%clk 0:00:02.6]} 59... Kg8 {[%clk 0:00:04.7]} 60.
Qg6+ {[%clk 0:00:02.3]} 60... Kf8 {[%clk 0:00:05]} 61. Qf5+ {[%clk 0:00:02.4]}
61... Kg8 {[%clk 0:00:05.2]} 62. Qg6+ {[%clk 0:00:02.9]} 1/2-1/2

[Event "Early-Titled-Tuesday-Blitz-May-07-2024"]
[Site "Chess.com"]
[Date "2024.05.07"]
[Round "6"]
[White "stollenmonster"]
[Black "juancruzarias"]
[Result "1-0"]
[WhiteElo "2926"]
[BlackElo "2731"]
[TimeControl "180+1"]
[EndTime "9:12:32 PDT"]
[Termination "stollenmonster won by resignation"]

1. e4 {[%clk 0:03:00.9]} 1... c6 {[%clk 0:02:59.9]} 2. d4 {[%clk 0:03:00.4]}
2... d5 {[%clk 0:03:00.3]} 3. e5 {[%clk 0:03:00.5]} 3... c5 {[%clk 0:03:00.2]}
4. c4 {[%clk 0:03:00.2]} 4... cxd4 {[%clk 0:02:58.1]} 5. Nf3 {[%clk 0:03:00.4]}
5... e6 {[%clk 0:02:54.9]} 6. Nxd4 {[%clk 0:03:00.8]} 6... Nc6 {[%clk 0:02:55]}
7. Nc3 {[%clk 0:03:01.3]} 7... Bb4 {[%clk 0:02:54.2]} 8. Nxc6 {[%clk 0:03:01]}
8... bxc6 {[%clk 0:02:54]} 9. Qa4 {[%clk 0:03:01]} 9... a5 {[%clk 0:02:47.3]}
10. a3 {[%clk 0:02:57.3]} 10... Bxc3+ {[%clk 0:02:44.9]} 11. bxc3 {[%clk
0:02:58.2]} 11... Ne7 {[%clk 0:02:43]} 12. Be3 {[%clk 0:02:58.4]} 12... O-O
{[%clk 0:02:40.5]} 13. Bc5 {[%clk 0:02:58.8]} 13... Ba6 {[%clk 0:02:28.5]} 14.
Rd1 {[%clk 0:02:52.4]} 14... Re8 {[%clk 0:02:28]} 15. Bd3 {[%clk 0:02:42.9]}
15... Ng6 {[%clk 0:02:27.2]} 16. Bd6 {[%clk 0:02:29.7]} 16... Qh4 {[%clk
0:02:13]} 17. O-O {[%clk 0:02:17.2]} 17... Bxc4 {[%clk 0:01:59.2]} 18. Bxc4
{[%clk 0:02:12.6]} 18... dxc4 {[%clk 0:01:57.5]} 19. Rd4 {[%clk 0:02:12]} 19...
Qg5 {[%clk 0:01:57.7]} 20. f4 {[%clk 0:02:07.4]} 20... Qf5 {[%clk 0:01:54.5]}
21. Qxc4 {[%clk 0:02:07.5]} 21... Rec8 {[%clk 0:01:50.5]} 22. h3 {[%clk
0:02:00.2]} 22... h5 {[%clk 0:01:49.9]} 23. Rd2 {[%clk 0:02:00.2]} 23... Nh4
{[%clk 0:01:41.7]} 24. g3 {[%clk 0:01:50]} 24... Qg6 {[%clk 0:01:38.6]} 25. Kh2
{[%clk 0:01:48.7]} 25... Nf5 {[%clk 0:01:37.7]} 26. Qd3 {[%clk 0:01:39.7]} 26...
Ra7 {[%clk 0:01:37.3]} 27. Rg1 {[%clk 0:01:34.1]} 27... Rb7 {[%clk 0:01:28.2]}
28. g4 {[%clk 0:01:23.8]} 28... hxg4 {[%clk 0:01:29.1]} 29. hxg4 {[%clk
0:01:23.5]} 29... Nh4 {[%clk 0:01:22]} 30. Qxg6 {[%clk 0:01:17.1]} 30... Nxg6
{[%clk 0:01:22.9]} 31. f5 {[%clk 0:01:15.6]} 31... Ne7 {[%clk 0:01:06]} 32. f6
{[%clk 0:01:08.6]} 32... Ng6 {[%clk 0:01:03]} 33. g5 {[%clk 0:00:59.7]} 33...
Rb5 {[%clk 0:00:57.3]} 34. c4 {[%clk 0:00:55.5]} 34... Rb3 {[%clk 0:00:57.2]}
35. Rg3 {[%clk 0:00:54]} 35... Rb1 {[%clk 0:00:57.3]} 36. Rgd3 {[%clk
0:00:44.7]} 36... Rd8 {[%clk 0:00:50.9]} 37. c5 {[%clk 0:00:43.1]} 37... Rd7
{[%clk 0:00:48.6]} 38. Kg3 {[%clk 0:00:41]} 38... Rdb7 {[%clk 0:00:48.4]} 39.
Kf3 {[%clk 0:00:39]} 39... a4 {[%clk 0:00:43.9]} 40. Rd4 {[%clk 0:00:36.7]}
40... R7b3+ {[%clk 0:00:43.9]} 41. R2d3 {[%clk 0:00:36.7]} 41... Ra1 {[%clk
0:00:35.2]} 42. Rxb3 {[%clk 0:00:27.4]} 42... axb3 {[%clk 0:00:35.3]} 43. Rb4
{[%clk 0:00:27.8]} 43... Rxa3 {[%clk 0:00:34.9]} 44. Ke4 {[%clk 0:00:27.4]}
44... Nh4 {[%clk 0:00:21.3]} 45. Kd4 {[%clk 0:00:20.3]} 45... Nf5+ {[%clk
0:00:19.2]} 46. Kc3 {[%clk 0:00:20.5]} 46... gxf6 {[%clk 0:00:19.2]} 47. gxf6
{[%clk 0:00:20.3]} 47... Kh7 {[%clk 0:00:19.5]} 48. Kb2 {[%clk 0:00:19.1]} 48...
Ra2+ {[%clk 0:00:19.2]} 49. Kxb3 {[%clk 0:00:19]} 49... Rg2 {[%clk 0:00:18.6]}
50. Rb6 {[%clk 0:00:18.7]} 50... Kg6 {[%clk 0:00:18.5]} 51. Kb4 {[%clk
0:00:18.5]} 51... Rb2+ {[%clk 0:00:18.5]} 52. Ka5 {[%clk 0:00:18.6]} 52... Ra2+
{[%clk 0:00:18]} 53. Kb4 {[%clk 0:00:18.9]} 53... Rb2+ {[%clk 0:00:18.4]} 54.
Kc3 {[%clk 0:00:19.1]} 54... Re2 {[%clk 0:00:11.8]} 55. Rxc6 {[%clk 0:00:19]}
55... Re3+ {[%clk 0:00:11.7]} 56. Kc4 {[%clk 0:00:18.8]} 56... Re4+ {[%clk
0:00:11.8]} 57. Kc3 {[%clk 0:00:19.2]} 57... Nd4 {[%clk 0:00:11.8]} 58. Rc8
{[%clk 0:00:16.2]} 58... Nb5+ {[%clk 0:00:09.9]} 59. Kd3 {[%clk 0:00:16.5]}
59... Rd4+ {[%clk 0:00:10.2]} 60. Ke3 {[%clk 0:00:16.8]} 60... Rc4 {[%clk
0:00:10.9]} 61. Rb8 {[%clk 0:00:14.4]} 61... Nc3 {[%clk 0:00:10.4]} 62. Kd3
{[%clk 0:00:14.3]} 1-0

[Event "Early-Titled-Tuesday-Blitz-May-07-2024"]
[Site "Chess.com"]
[Date "2024.05.07"]
[Round "6"]
[White "Sokoloco"]
[Black "KuzubovYuriy"]
[Result "0-1"]
[WhiteElo "2801"]
[BlackElo "2963"]
[TimeControl "180+1"]
[EndTime "9:12:37 PDT"]
[Termination "KuzubovYuriy won on time"]

1. g3 {[%clk 0:03:00.9]} 1... d5 {[%clk 0:02:57.9]} 2. Nf3 {[%clk 0:02:56.9]}
2... Bg4 {[%clk 0:02:56.1]} 3. Bg2 {[%clk 0:02:57]} 3... Nd7 {[%clk 0:02:56.5]}
4. O-O {[%clk 0:02:45]} 4... c6 {[%clk 0:02:55.7]} 5. c4 {[%clk 0:02:42.4]} 5...
Bxf3 {[%clk 0:02:55.2]} 6. exf3 {[%clk 0:02:38.2]} 6... dxc4 {[%clk 0:02:55.5]}
7. f4 {[%clk 0:02:14.8]} 7... e6 {[%clk 0:02:53.2]} 8. Re1 {[%clk 0:02:07.5]}
8... Ne7 {[%clk 0:02:42.9]} 9. Na3 {[%clk 0:02:04.9]} 9... Nb6 {[%clk
0:02:41.9]} 10. Bf1 {[%clk 0:01:53.6]} 10... g6 {[%clk 0:02:36.7]} 11. Nxc4
{[%clk 0:01:51.1]} 11... Nxc4 {[%clk 0:02:35.8]} 12. Bxc4 {[%clk 0:01:52]} 12...
Bg7 {[%clk 0:02:35.7]} 13. Rb1 {[%clk 0:01:38.8]} 13... a5 {[%clk 0:02:30.3]}
14. a4 {[%clk 0:01:35.6]} 14... O-O {[%clk 0:02:27]} 15. b4 {[%clk 0:01:35.1]}
15... Qc7 {[%clk 0:02:04.9]} 16. Qb3 {[%clk 0:01:27.3]} 16... axb4 {[%clk
0:01:44.9]} 17. Qxb4 {[%clk 0:01:19.7]} 17... Rfb8 {[%clk 0:01:40.9]} 18. Ba3
{[%clk 0:01:09.5]} 18... Nf5 {[%clk 0:01:37.3]} 19. Bf1 {[%clk 0:00:58.4]} 19...
Bf8 {[%clk 0:01:32.4]} 20. Qb2 {[%clk 0:00:55.5]} 20... Bxa3 {[%clk 0:01:32.4]}
21. Qxa3 {[%clk 0:00:56.4]} 21... b5 {[%clk 0:01:26.4]} 22. Qc3 {[%clk 0:00:57]}
22... bxa4 {[%clk 0:01:24]} 23. Rxb8+ {[%clk 0:00:53.9]} 23... Rxb8 {[%clk
0:01:23.7]} 24. Ra1 {[%clk 0:00:54.7]} 24... Ra8 {[%clk 0:01:17.4]} 25. Bb5
{[%clk 0:00:54.5]} 25... Nd4 {[%clk 0:01:06.2]} 26. Bc4 {[%clk 0:00:21.9]} 26...
Qd6 {[%clk 0:01:06]} 27. Kf1 {[%clk 0:00:18.7]} 27... a3 {[%clk 0:01:04.6]} 28.
Be2 {[%clk 0:00:15.5]} 28... Nxe2 {[%clk 0:00:59.1]} 29. Kxe2 {[%clk 0:00:15.4]}
29... a2 {[%clk 0:00:59.4]} 30. Qc2 {[%clk 0:00:06.1]} 30... Qd5 {[%clk
0:00:59]} 31. f3 {[%clk 0:00:04.4]} 31... h5 {[%clk 0:00:56.7]} 32. d3 {[%clk
0:00:03.7]} 32... Kf8 {[%clk 0:00:54.5]} 33. Ke3 {[%clk 0:00:03.8]} 33... c5
{[%clk 0:00:53.7]} 34. Qc3 {[%clk 0:00:03.9]} 34... Ke7 {[%clk 0:00:50.7]} 35.
Kd2 {[%clk 0:00:02.9]} 35... Qd4 {[%clk 0:00:49.3]} 36. Kc2 {[%clk 0:00:01.6]}
36... Qxc3+ {[%clk 0:00:47.7]} 37. Kxc3 {[%clk 0:00:02.5]} 37... Ra3+ {[%clk
0:00:47.3]} 38. Kc4 {[%clk 0:00:01.8]} 38... Kd6 {[%clk 0:00:46.1]} 39. d4
{[%clk 0:00:02.1]} 39... cxd4 {[%clk 0:00:40.6]} 40. Kxd4 {[%clk 0:00:03]} 40...
h4 {[%clk 0:00:38.6]} 41. gxh4 {[%clk 0:00:02]} 41... Rxf3 {[%clk 0:00:38.3]}
42. h5 {[%clk 0:00:01.9]} 42... gxh5 {[%clk 0:00:36.8]} 43. Rxa2 {[%clk
0:00:02.2]} 43... Rxf4+ {[%clk 0:00:37]} 44. Ke3 {[%clk 0:00:03.1]} 44... Rh4
{[%clk 0:00:36.4]} 45. Kf3 {[%clk 0:00:03.5]} 45... Ke7 {[%clk 0:00:36]} 46. Kg3
{[%clk 0:00:03.8]} 46... Rg4+ {[%clk 0:00:36.4]} 47. Kh3 {[%clk 0:00:03.9]}
47... Rg5 {[%clk 0:00:36.5]} 48. Kh4 {[%clk 0:00:03.9]} 48... Kf6 {[%clk
0:00:36.3]} 49. Rf2+ {[%clk 0:00:02.9]} 49... Rf5 {[%clk 0:00:35.7]} 50. Re2
{[%clk 0:00:01.5]} 50... Kg6 {[%clk 0:00:34.7]} 51. Rg2+ {[%clk 0:00:01.6]}
51... Kh6 {[%clk 0:00:34.8]} 52. Rg8 {[%clk 0:00:02.3]} 52... Rf4+ {[%clk
0:00:33.8]} 53. Kh3 {[%clk 0:00:01.2]} 53... e5 {[%clk 0:00:33.8]} 54. Re8
{[%clk 0:00:01.5]} 54... f6 {[%clk 0:00:33.7]} 55. Re7 {[%clk 0:00:01.5]} 55...
Kg6 {[%clk 0:00:31.7]} 56. Re8 {[%clk 0:00:01.9]} 56... Kf5 {[%clk 0:00:31.9]}
57. Kg3 {[%clk 0:00:02.2]} 57... e4 {[%clk 0:00:31.5]} 58. Rh8 {[%clk
0:00:02.5]} 58... h4+ {[%clk 0:00:30.5]} 59. Kh3 {[%clk 0:00:02.6]} 59... Ke5
{[%clk 0:00:28.7]} 60. Re8+ {[%clk 0:00:02.4]} 60... Kd4 {[%clk 0:00:28.7]} 61.
Rd8+ {[%clk 0:00:03]} 61... Ke3 {[%clk 0:00:28.7]} 62. Ra8 {[%clk 0:00:03.3]}
62... f5 {[%clk 0:00:27.8]} 63. Ra3+ {[%clk 0:00:03.4]} 63... Kd4 {[%clk
0:00:27.9]} 64. Ra4+ {[%clk 0:00:03.4]} 64... Ke5 {[%clk 0:00:28.4]} 65. Ra5+
{[%clk 0:00:03.8]} 65... Kf6 {[%clk 0:00:28.9]} 66. Ra6+ {[%clk 0:00:04.3]}
66... Kg5 {[%clk 0:00:29.3]} 67. Ra8 {[%clk 0:00:03.4]} 67... e3 {[%clk
0:00:28.8]} 68. Rg8+ {[%clk 0:00:03]} 68... Kf6 {[%clk 0:00:28.7]} 69. Rf8+
{[%clk 0:00:02.1]} 69... Ke7 {[%clk 0:00:28.5]} 70. Ra8 {[%clk 0:00:02.4]} 70...
e2 {[%clk 0:00:28]} 71. Ra1 {[%clk 0:00:01.8]} 71... Rf1 {[%clk 0:00:27.3]} 72.
Ra2 {[%clk 0:00:01.9]} 72... e1=Q {[%clk 0:00:24.5]} 73. Re2+ {[%clk 0:00:02.6]}
73... Qxe2 {[%clk 0:00:24.4]} 0-1

[Event "Early-Titled-Tuesday-Blitz-May-07-2024"]
[Site "Chess.com"]
[Date "2024.05.07"]
[Round "6"]
[White "DACF2905"]
[Black "BirdMaster3000"]
[Result "0-1"]
[WhiteElo "2429"]
[BlackElo "2625"]
[TimeControl "180+1"]
[EndTime "9:12:37 PDT"]
[Termination "BirdMaster3000 won on time"]

1. e4 {[%clk 0:02:47.9]} 1... c5 {[%clk 0:02:59.4]} 2. Nf3 {[%clk 0:02:47.2]}
2... e6 {[%clk 0:02:59.4]} 3. c3 {[%clk 0:02:46.3]} 3... Nf6 {[%clk 0:02:57.6]}
4. e5 {[%clk 0:02:45.4]} 4... Nd5 {[%clk 0:02:57.1]} 5. Bc4 {[%clk 0:02:45.5]}
5... Nb6 {[%clk 0:02:50.8]} 6. Be2 {[%clk 0:02:45.5]} 6... d6 {[%clk 0:02:47]}
7. d4 {[%clk 0:02:45.5]} 7... cxd4 {[%clk 0:02:43.3]} 8. cxd4 {[%clk 0:02:45.3]}
8... Nc6 {[%clk 0:02:41.5]} 9. O-O {[%clk 0:02:44.8]} 9... Be7 {[%clk
0:02:39.1]} 10. Nc3 {[%clk 0:02:44]} 10... O-O {[%clk 0:02:39.1]} 11. d5 {[%clk
0:02:44]} 11... exd5 {[%clk 0:02:36.9]} 12. Nxd5 {[%clk 0:02:44.1]} 12... Nxd5
{[%clk 0:02:34.2]} 13. Qxd5 {[%clk 0:02:41.3]} 13... dxe5 {[%clk 0:02:34.5]} 14.
Qb3 {[%clk 0:02:24.9]} 14... e4 {[%clk 0:02:30.9]} 15. Rd1 {[%clk 0:02:23.3]}
15... Qc7 {[%clk 0:02:04.4]} 16. Ng5 {[%clk 0:02:21.2]} 16... Qe5 {[%clk
0:01:36.9]} 17. Rd5 {[%clk 0:02:18.7]} 17... Qc7 {[%clk 0:01:26.1]} 18. Nxe4
{[%clk 0:02:18]} 18... Be6 {[%clk 0:01:25.9]} 19. Be3 {[%clk 0:01:43.3]} 19...
Nb4 {[%clk 0:01:14.9]} 20. Rc1 {[%clk 0:01:04.2]} 20... Bxd5 {[%clk 0:01:04.2]}
21. Rxc7 {[%clk 0:01:02.4]} 21... Bxb3 {[%clk 0:01:04.2]} 22. axb3 {[%clk
0:00:57]} 22... Nd5 {[%clk 0:01:04.3]} 23. Rxb7 {[%clk 0:00:55.9]} 23... Rfb8
{[%clk 0:00:50.2]} 24. Rd7 {[%clk 0:00:52.3]} 24... Nxe3 {[%clk 0:00:49.9]} 25.
fxe3 {[%clk 0:00:48.1]} 25... Kf8 {[%clk 0:00:47.4]} 26. Bc4 {[%clk 0:00:47.7]}
26... Rd8 {[%clk 0:00:44.7]} 27. Rb7 {[%clk 0:00:46.9]} 27... a5 {[%clk
0:00:43.6]} 28. Kf2 {[%clk 0:00:44.4]} 28... a4 {[%clk 0:00:39.5]} 29. bxa4
{[%clk 0:00:44.4]} 29... Rxa4 {[%clk 0:00:40.4]} 30. b3 {[%clk 0:00:44.8]} 30...
Raa8 {[%clk 0:00:31.1]} 31. Ng3 {[%clk 0:00:43.9]} 31... g6 {[%clk 0:00:31.1]}
32. Ne4 {[%clk 0:00:41.7]} 32... h5 {[%clk 0:00:30.4]} 33. g3 {[%clk 0:00:40]}
33... Ra5 {[%clk 0:00:26.9]} 34. h4 {[%clk 0:00:38.6]} 34... Rda8 {[%clk
0:00:22.9]} 35. Ng5 {[%clk 0:00:35.1]} 35... Rf5+ {[%clk 0:00:22.4]} 36. Ke2
{[%clk 0:00:32.1]} 36... Bxg5 {[%clk 0:00:16.6]} 37. hxg5 {[%clk 0:00:31.8]}
37... Re8 {[%clk 0:00:15.6]} 38. Kd3 {[%clk 0:00:20]} 38... Re7 {[%clk
0:00:15.8]} 39. Rb8+ {[%clk 0:00:19.4]} 39... Kg7 {[%clk 0:00:16]} 40. b4 {[%clk
0:00:16.7]} 40... Rxg5 {[%clk 0:00:16.1]} 41. b5 {[%clk 0:00:16.8]} 41... Rxg3
{[%clk 0:00:15.7]} 42. b6 {[%clk 0:00:15.9]} 42... Rgxe3+ {[%clk 0:00:15.4]} 43.
Kd2 {[%clk 0:00:16]} 43... R3e4 {[%clk 0:00:13.9]} 44. Bd3 {[%clk 0:00:16]}
44... Rb4 {[%clk 0:00:12.7]} 45. Kc3 {[%clk 0:00:16.3]} 45... Rf4 {[%clk
0:00:08]} 46. b7 {[%clk 0:00:15.9]} 46... Rc7+ {[%clk 0:00:07.7]} 47. Kd2 {[%clk
0:00:14.1]} 47... Rb4 {[%clk 0:00:07.2]} 48. Ba6 {[%clk 0:00:10.8]} 48... Rb6
{[%clk 0:00:06.2]} 49. Rc8 {[%clk 0:00:04.1]} 49... Rbxb7 {[%clk 0:00:03.9]} 50.
Bxb7 {[%clk 0:00:03.9]} 50... Rxb7 {[%clk 0:00:04.8]} 51. Ke3 {[%clk 0:00:03.9]}
51... f5 {[%clk 0:00:03]} 52. Kf3 {[%clk 0:00:04.3]} 52... Kh6 {[%clk
0:00:03.4]} 53. Kg3 {[%clk 0:00:04.3]} 53... Kg5 {[%clk 0:00:03.8]} 54. Rc4
{[%clk 0:00:03.9]} 54... Rb3+ {[%clk 0:00:04.2]} 55. Kg2 {[%clk 0:00:04]} 55...
h4 {[%clk 0:00:05.1]} 56. Kh2 {[%clk 0:00:04.1]} 56... f4 {[%clk 0:00:05.6]} 57.
Kg2 {[%clk 0:00:04.5]} 57... Kg4 {[%clk 0:00:06.1]} 58. Rc8 {[%clk 0:00:00.9]}
58... g5 {[%clk 0:00:06.5]} 59. Rg8 {[%clk 0:00:00.5]} 59... Rb2+ {[%clk
0:00:07]} 60. Kf1 {[%clk 0:00:00.6]} 60... Kf3 {[%clk 0:00:06.1]} 61. Kg1 {[%clk
0:00:00.4]} 61... g4 {[%clk 0:00:06.5]} 0-1

[Event "Early-Titled-Tuesday-Blitz-May-07-2024"]
[Site "Chess.com"]
[Date "2024.05.07"]
[Round "6"]
[White "Chesmc"]
[Black "alvarorodriguezavila"]
[Result "1-0"]
[WhiteElo "2136"]
[BlackElo "2330"]
[TimeControl "180+1"]
[EndTime "9:12:38 PDT"]
[Termination "Chesmc won on time"]

1. d4 {[%clk 0:03:00.9]} 1... Nf6 {[%clk 0:03:00.3]} 2. Nf3 {[%clk 0:03:00]}
2... d5 {[%clk 0:03:00.3]} 3. Bf4 {[%clk 0:02:59.6]} 3... Bf5 {[%clk 0:02:56.2]}
4. e3 {[%clk 0:02:58.8]} 4... e6 {[%clk 0:02:56.4]} 5. Bd3 {[%clk 0:02:57.9]}
5... Bg6 {[%clk 0:02:54.6]} 6. Ne5 {[%clk 0:02:57.3]} 6... Nbd7 {[%clk
0:02:54.7]} 7. O-O {[%clk 0:02:54.2]} 7... Bd6 {[%clk 0:02:42.1]} 8. Bg3 {[%clk
0:02:51.1]} 8... O-O {[%clk 0:02:41.7]} 9. Nd2 {[%clk 0:02:44.1]} 9... Qe7
{[%clk 0:02:23.3]} 10. f4 {[%clk 0:02:37.7]} 10... Bh5 {[%clk 0:02:20.8]} 11.
Be2 {[%clk 0:02:29.5]} 11... Bxe2 {[%clk 0:02:20.2]} 12. Qxe2 {[%clk 0:02:30.4]}
12... Ne4 {[%clk 0:02:18.3]} 13. Nxe4 {[%clk 0:02:26.8]} 13... dxe4 {[%clk
0:02:18.3]} 14. c4 {[%clk 0:02:11.6]} 14... f5 {[%clk 0:02:01.9]} 15. Nxd7
{[%clk 0:01:54.2]} 15... Qxd7 {[%clk 0:02:02.8]} 16. Rfd1 {[%clk 0:01:51.8]}
16... Rfd8 {[%clk 0:01:56.9]} 17. Bh4 {[%clk 0:01:44]} 17... Be7 {[%clk
0:01:55.1]} 18. Qf2 {[%clk 0:01:33.3]} 18... Bxh4 {[%clk 0:01:40.1]} 19. Qxh4
{[%clk 0:01:32.8]} 19... Qf7 {[%clk 0:01:41]} 20. Rac1 {[%clk 0:01:29.1]} 20...
Rd7 {[%clk 0:01:41.4]} 21. b4 {[%clk 0:01:25.9]} 21... Rad8 {[%clk 0:01:41.5]}
22. a3 {[%clk 0:01:02.6]} 22... Rd6 {[%clk 0:01:21.2]} 23. c5 {[%clk 0:00:59.6]}
23... Rd5 {[%clk 0:01:18.7]} 24. Qg5 {[%clk 0:00:58.4]} 24... Qe8 {[%clk
0:01:11.3]} 25. Rc3 {[%clk 0:00:54.6]} 25... Qb5 {[%clk 0:01:11.2]} 26. Qh5
{[%clk 0:00:46.3]} 26... Qe8 {[%clk 0:01:07.3]} 27. Qxe8+ {[%clk 0:00:45.5]}
27... Rxe8 {[%clk 0:01:07.4]} 28. Kf2 {[%clk 0:00:45.8]} 28... Kf7 {[%clk
0:01:07.1]} 29. Ke2 {[%clk 0:00:45.9]} 29... Ke7 {[%clk 0:01:07.4]} 30. g3
{[%clk 0:00:45.3]} 30... Kd7 {[%clk 0:01:07.7]} 31. Kf2 {[%clk 0:00:45.3]} 31...
Kc6 {[%clk 0:01:08.3]} 32. a4 {[%clk 0:00:44.5]} 32... a6 {[%clk 0:01:08.3]} 33.
Rb1 {[%clk 0:00:43.7]} 33... Ra8 {[%clk 0:01:07.1]} 34. Ke2 {[%clk 0:00:41]}
34... Kd7 {[%clk 0:01:07.7]} 35. Kf2 {[%clk 0:00:40.9]} 35... h6 {[%clk
0:01:03.4]} 36. Kg2 {[%clk 0:00:35.7]} 36... Ke7 {[%clk 0:01:03.2]} 37. Kf2
{[%clk 0:00:35.9]} 37... g5 {[%clk 0:01:00.6]} 38. Rg1 {[%clk 0:00:32.2]} 38...
Rg8 {[%clk 0:00:56.1]} 39. Ra1 {[%clk 0:00:22.2]} 39... gxf4 {[%clk 0:00:55.5]}
40. gxf4 {[%clk 0:00:22.6]} 40... Rg4 {[%clk 0:00:52.8]} 41. Rcc1 {[%clk
0:00:21.9]} 41... Rh4 {[%clk 0:00:16.6]} 42. Kg3 {[%clk 0:00:17.7]} 42... Rh5
{[%clk 0:00:17.2]} 43. h4 {[%clk 0:00:16.5]} 43... Rd8 {[%clk 0:00:17]} 44. Kh3
{[%clk 0:00:16.5]} 44... e5 {[%clk 0:00:09.5]} 45. fxe5 {[%clk 0:00:15.5]} 45...
Ke6 {[%clk 0:00:10.1]} 46. Rg1 {[%clk 0:00:15]} 46... f4 {[%clk 0:00:09.7]} 47.
Kg4 {[%clk 0:00:13.5]} 47... Rf5 {[%clk 0:00:07.6]} 48. exf4 {[%clk 0:00:13.2]}
48... Rxd4 {[%clk 0:00:06.1]} 49. Raf1 {[%clk 0:00:08.4]} 49... Rxb4 {[%clk
0:00:05.7]} 50. Kh3 {[%clk 0:00:07.7]} 50... Rxa4 {[%clk 0:00:03.5]} 51. Rg6+
{[%clk 0:00:08.1]} 51... Ke7 {[%clk 0:00:04.1]} 52. Rg7+ {[%clk 0:00:06.8]}
52... Ke8 {[%clk 0:00:03.5]} 53. Rg6 {[%clk 0:00:06.6]} 53... e3 {[%clk
0:00:03.4]} 54. Rxh6 {[%clk 0:00:06.6]} 54... Raxf4 {[%clk 0:00:03.6]} 55. Re1
{[%clk 0:00:06.7]} 55... Rf3+ {[%clk 0:00:01.3]} 56. Kg4 {[%clk 0:00:07.2]}
56... R3f4+ {[%clk 0:00:01.6]} 57. Kg3 {[%clk 0:00:07.3]} 57... Re4 {[%clk
0:00:02.4]} 58. Rh8+ {[%clk 0:00:06.9]} 58... Ke7 {[%clk 0:00:02.4]} 59. h5
{[%clk 0:00:07.8]} 59... Rfxe5 {[%clk 0:00:02.4]} 60. Rh7+ {[%clk 0:00:08.4]}
60... Ke6 {[%clk 0:00:02.7]} 61. h6 {[%clk 0:00:09.3]} 61... e2 {[%clk 0:00:03]}
62. Rh8 {[%clk 0:00:08.8]} 62... Rh5 {[%clk 0:00:02.9]} 63. Kf3 {[%clk
0:00:09.1]} 63... Ree5 {[%clk 0:00:02.6]} 64. Rxe2 {[%clk 0:00:09.7]} 64... Rh3+
{[%clk 0:00:02.9]} 65. Kg4 {[%clk 0:00:09.2]} 65... Rxe2 {[%clk 0:00:02.8]} 66.
Kxh3 {[%clk 0:00:09.7]} 66... Re1 {[%clk 0:00:03.2]} 67. Re8+ {[%clk 0:00:09.1]}
67... Kd5 {[%clk 0:00:02.7]} 68. Rxe1 {[%clk 0:00:10]} 1-0